bitfinex-derivatives/quotes_BTCF0:USTF0_20260118
["timestamp","ask_amount","ask_price","bid_price","bid_amount"]
[1768740565912,0.12179601,95196.0,95189.0,2e-07]
[1768740604161,0.12179601,95196.0,95189.0,0.0010002]
[1768740604865,0.12179601,95196.0,95189.0,2e-07]
[1768740605058,0.12179601,95196.0,95189.0,0.0010002]
[1768740607960,0.12179601,95196.0,95189.0,2e-07]
[1768740619971,0.0134617,95195.0,95189.0,2e-07]
[1768740620165,0.12318452,95195.0,95189.0,2e-07]
[1768740624078,0.12318452,95195.0,95189.0,0.0010002]
[1768740624867,0.12318452,95195.0,95189.0,2e-07]
[1768740628379,0.12318452,95195.0,95189.0,0.0010002]
[1768740629979,0.12318452,95195.0,95189.0,2e-07]
[1768740631179,0.10822412,95193.0,95189.0,2e-07]
[1768740631590,0.12244833,95193.0,95189.0,2e-07]
[1768740646286,0.01406562,95192.0,95189.0,0.0010002]
[1768740648292,0.01406562,95192.0,95189.0,2e-07]
[1768740648485,0.01406562,95192.0,95189.0,0.0010002]
[1768740649089,0.01406562,95192.0,95189.0,2e-07]
[1768740649291,0.01406562,95192.0,95189.0,0.0010002]
[1768740652295,0.01406562,95192.0,95189.0,2e-07]
[1768740652689,0.01406562,95192.0,95184.0,0.00231131]
[1768740660800,0.01406562,95192.0,95184.0,0.04015928]
[1768740662215,0.01406562,95192.0,95184.0,0.04115928]
[1768740662816,0.01406562,95192.0,95185.0,0.03784797]
[1768740665519,0.01406562,95192.0,95185.0,0.03884797]
[1768740666520,0.11186993,95196.0,95185.0,0.03884797]
[1768740668519,0.11186993,95196.0,95185.0,0.03784797]
[1768740670221,0.11186993,95196.0,95184.0,0.04015928]
[1768740675218,0.010509,95195.0,95184.0,0.04015928]
[1768740676326,0.11186993,95196.0,95184.0,0.04015928]
[1768740677029,0.12237893,95196.0,95184.0,0.04015928]
[1768740680219,0.12237893,95196.0,95184.0,0.00231131]
[1768740682130,0.11186993,95196.0,95184.0,0.00231131]
[1768740690238,0.11186993,95196.0,95184.0,0.04015928]
[1768740690535,0.12568284,95196.0,95184.0,0.04015928]
[1768740697537,0.13619184,95196.0,95184.0,0.04015928]
[1768740697735,0.010509,95194.0,95184.0,0.04015928]
[1768740698638,0.12568284,95196.0,95184.0,0.04015928]
[1768740702840,0.13619184,95196.0,95184.0,0.04015928]
[1768740710743,0.131375,95195.0,95184.0,0.04015928]
[1768740712950,0.010509,95194.0,95184.0,0.00231131]
[1768740713153,0.010509,95194.0,95184.0,0.04015928]
[1768740713544,0.131375,95195.0,95184.0,0.04015928]
[1768740713846,0.141884,95195.0,95184.0,0.04015928]
[1768740714555,0.141884,95195.0,95184.0,0.00231131]
[1768740715155,0.141884,95195.0,95184.0,0.04015928]
[1768740717466,0.141884,95195.0,95184.0,0.00231131]
[1768740718760,0.141884,95195.0,95184.0,0.04015928]
[1768740720760,0.141884,95195.0,95184.0,0.00231131]
[1768740720961,0.141884,95195.0,95184.0,0.04015928]
[1768740722562,0.141884,95195.0,95184.0,0.00231131]
[1768740724165,0.141884,95195.0,95184.0,0.04015928]
[1768740724466,0.131375,95195.0,95184.0,0.04015928]
[1768740725462,0.141884,95195.0,95184.0,0.04015928]
[1768740725864,0.141884,95195.0,95184.0,0.00231131]
[1768740732268,0.010509,95193.0,95184.0,0.00231131]
[1768740738573,0.131375,95195.0,95184.0,0.00231131]
[1768740738873,0.010509,95194.0,95184.0,0.00231131]
[1768740742675,0.11885688,95180.0,95171.0,0.04201972]
[1768740742872,0.11885688,95180.0,95168.0,0.0946]
[1768740743175,0.12936788,95177.0,95160.0,0.04092789]
[1768740743381,0.12936788,95177.0,95164.0,0.0946]
[1768740743680,0.12936788,95175.0,95169.0,6.9e-07]
[1768740743970,0.10809147,95173.0,95169.0,6.9e-07]
[1768740744170,0.01076541,95172.0,95169.0,6.9e-07]
[1768740745673,0.12936888,95169.0,95156.0,0.0946]
[1768740745877,0.01076541,95165.0,95156.0,0.0946]
[1768740746075,0.10809147,95165.0,95156.0,0.08201231]
[1768740746376,0.03700414,95164.0,95150.0,0.0946]
[1768740746572,0.03700414,95164.0,95154.0,0.04164066]
[1768740746972,0.03700414,95164.0,95150.0,0.0946]
[1768740747179,0.03700414,95164.0,95154.0,0.04164066]
[1768740747488,0.03700414,95164.0,95150.0,0.13624066]
[1768740747489,0.02623873,95163.0,95150.0,0.13624066]
[1768740747670,0.02623873,95163.0,95150.0,0.0946]
[1768740748066,0.02623873,95163.0,95150.0,0.13660181]
[1768740748770,0.02623873,95162.0,95150.0,0.13660181]
[1768740748971,0.02623873,95162.0,95150.0,0.13602344]
[1768740749174,0.02623873,95162.0,95150.0,0.0946]
[1768740749372,0.01982959,95158.0,95150.0,0.00726441]
[1768740749667,0.01982959,95158.0,95149.0,0.00231218]
[1768740749872,0.00892656,95165.0,95149.0,0.00231218]
[1768740750776,0.010512,95164.0,95149.0,0.00231218]
[1768740751673,0.010513,95161.0,95149.0,0.00231218]
[1768740753078,0.00962912,95163.0,95149.0,0.00231218]
[1768740753278,0.010514,95153.0,95149.0,1.8e-07]
[1768740753485,0.02014312,95153.0,95149.0,1.8e-07]
[1768740753880,0.00962912,95153.0,95149.0,1.8e-07]
[1768740754086,0.010513,95157.0,95149.0,1.8e-07]
[1768740755988,0.010514,95152.0,95144.0,4.6e-07]
[1768740757279,0.010514,95149.0,95143.0,9.6e-07]
[1768740757794,0.01793162,95149.0,95143.0,9.6e-07]
[1768740758381,0.00010151,95148.0,95143.0,9.6e-07]
[1768740758582,0.010514,95147.0,95143.0,9.6e-07]
[1768740759282,0.00010151,95148.0,95143.0,9.6e-07]
[1768740760393,0.010514,95147.0,95143.0,9.6e-07]
[1768740761096,0.00010151,95148.0,95143.0,9.6e-07]
[1768740761497,0.010514,95147.0,95143.0,9.6e-07]
[1768740761887,0.010515,95145.0,95143.0,9.6e-07]
[1768740762194,0.01585322,95145.0,95143.0,9.6e-07]
[1768740762395,0.010515,95145.0,95143.0,9.6e-07]
[1768740762700,0.00492268,95144.0,95143.0,9.6e-07]
[1768740769102,0.00010151,95148.0,95124.0,0.00231277]
[1768740769103,0.010516,95131.0,95124.0,7.7e-07]
[1768740769900,0.00239449,95139.0,95124.0,7.7e-07]
[1768740770105,0.00015768,95137.0,95124.0,7.7e-07]
[1768740770906,0.010516,95133.0,95124.0,7.7e-07]
[1768740771623,0.010516,95136.0,95124.0,7.7e-07]
[1768740773914,0.010516,95134.0,95124.0,7.7e-07]
[1768740774121,0.010517,95126.0,95124.0,7.7e-07]
[1768740774423,0.010516,95129.0,95124.0,7.7e-07]
[1768740775918,0.00053546,95136.0,95124.0,7.7e-07]
[1768740776118,0.00015768,95137.0,95124.0,7.7e-07]
[1768740776522,0.010516,95128.0,95124.0,7.7e-07]
[1768740778023,0.010516,95131.0,95124.0,7.7e-07]
[1768740779424,0.00015768,95137.0,95124.0,0.01090094]
[1768740779727,0.09464,95141.0,95127.0,0.01090017]
[1768740786225,0.09464,95141.0,95128.0,0.01090017]
[1768740790135,0.00010151,95148.0,95135.0,0.01090017]
[1768740790332,0.00655468,95152.0,95135.0,0.01090017]
[1768740790532,0.02128423,95151.0,95135.0,0.01090017]
[1768740790732,0.02128423,95150.0,95135.0,0.01090017]
[1768740791039,0.02128423,95149.0,95135.0,0.01090017]
[1768740791236,0.02128688,95148.0,95135.0,0.01090017]
[1768740791433,0.010514,95154.0,95135.0,0.01090017]
[1768740791635,0.010514,95154.0,95136.0,0.01090017]
[1768740792127,0.10168928,95161.0,95142.0,0.01090017]
[1768740792326,0.09464,95161.0,95143.0,0.01090017]
[1768740792630,0.010513,95160.0,95143.0,0.01090017]
[1768740794033,0.00704928,95162.0,95143.0,0.01090017]
[1768740796331,0.01498843,95161.0,95143.0,0.01090017]
[1768740796529,0.00447543,95160.0,95143.0,0.01090017]
[1768740799643,0.00447543,95160.0,95144.0,0.010515]
[1768740799843,0.00447543,95160.0,95144.0,0.02141517]
[1768740801242,0.00447543,95160.0,95145.0,0.01090017]
[1768740802445,0.00447543,95160.0,95146.0,0.010514]
[1768740802647,0.0077957,95163.0,95147.0,0.00952893]
[1768740806750,0.00778869,95162.0,95147.0,0.00952893]
[1768740810051,0.0023118,95164.0,95149.0,0.00952893]
[1768740810248,0.010512,95167.0,95149.0,0.00952893]
[1768740810950,0.09464,95168.0,95155.0,0.00952893]
[1768740811259,0.09464,95168.0,95153.0,0.1102942]
[1768740811260,0.09464,95168.0,95156.0,0.010513]
[1768740811443,0.105151,95176.0,95156.0,0.010513]
[1768740811742,0.09464,95176.0,95158.0,0.00547446]
[1768740812241,0.09464,95176.0,95157.0,0.1102942]
[1768740812647,0.09464,95176.0,95154.0,0.1208072]
[1768740812848,0.105151,95176.0,95154.0,0.1208072]
[1768740813046,0.010512,95172.0,95155.0,0.00952893]
[1768740813755,0.010511,95175.0,95155.0,0.00952893]
[1768740815638,0.010511,95175.0,95156.0,0.00952893]
[1768740821461,0.0121995,95175.0,95156.0,0.00952893]
[1768740824050,0.010512,95172.0,95156.0,0.00952893]
[1768740824251,0.0121995,95175.0,95156.0,0.00952893]
[1768740827355,0.0121995,95175.0,95157.0,0.010513]
[1768740827563,0.0121995,95175.0,95158.0,0.00922706]
[1768740828763,0.0016885,95175.0,95158.0,0.00922706]
[1768740829061,0.010512,95168.0,95158.0,0.00922706]
[1768740829262,0.010512,95166.0,95158.0,0.00922706]
[1768740830763,0.09464,95176.0,95158.0,0.00922706]
[1768740831159,0.010512,95170.0,95153.0,0.09464]
[1768740831463,0.010512,95167.0,95153.0,0.09464]
[1768740831770,0.010512,95165.0,95153.0,0.09464]
[1768740832266,0.010512,95168.0,95153.0,0.10425015]
[1768740835259,0.010512,95168.0,95153.0,0.00961015]
[1768740838069,0.00180689,95175.0,95153.0,0.00961015]
[1768740838668,0.010512,95168.0,95153.0,0.00961015]
[1768740839168,0.00180689,95175.0,95153.0,0.00961015]
[1768740839368,0.010512,95166.0,95153.0,0.00961015]
[1768740840467,0.010513,95159.0,95149.0,0.00231218]
[1768740841767,0.00901704,95171.0,95149.0,0.00231218]
[1768740841768,0.010513,95163.0,95149.0,0.00231218]
[1768740842665,0.010513,95160.0,95149.0,0.00231218]
[1768740842863,0.00901704,95168.0,95149.0,0.00231218]
[1768740843178,0.010513,95158.0,95149.0,0.00231218]
[1768740845269,0.00901704,95168.0,95149.0,0.00231218]
[1768740846368,0.010513,95160.0,95149.0,0.00231218]
[1768740849075,0.010513,95157.0,95149.0,0.00231218]
[1768740849275,0.010513,95155.0,95149.0,1.8e-07]
[1768740853072,0.00901704,95164.0,95149.0,1.8e-07]
[1768740854483,0.010514,95154.0,95149.0,1.8e-07]
[1768740855072,0.010513,95155.0,95149.0,1.8e-07]
[1768740855382,0.010514,95153.0,95149.0,1.8e-07]
[1768740858471,0.00015768,95161.0,95145.0,8.6e-07]
[1768740858678,0.00015768,95161.0,95144.0,0.00231228]
[1768740858679,0.010514,95147.0,95144.0,1.4e-07]
[1768740859182,0.010515,95142.0,95132.0,6.2e-07]
[1768740859372,0.010515,95140.0,95129.0,0.00231266]
[1768740860977,0.010515,95143.0,95129.0,0.00231266]
[1768740861281,0.010514,95146.0,95129.0,0.00231266]
[1768740861478,0.021206,95145.0,95129.0,0.00231266]
[1768740861678,0.010514,95146.0,95129.0,0.00231266]
[1768740861879,0.021206,95145.0,95129.0,0.00231266]
[1768740862077,0.010514,95146.0,95129.0,0.00231266]
[1768740862277,0.02120151,95145.0,95129.0,0.00231266]
[1768740862469,0.010514,95146.0,95129.0,0.00231266]
[1768740862668,0.02120129,95145.0,95129.0,0.00231266]
[1768740862880,0.010514,95146.0,95129.0,0.00231266]
[1768740863385,0.01953104,95150.0,95129.0,0.00231266]
[1768740863579,0.0317117,95149.0,95129.0,0.02207519]
[1768740863785,0.0211977,95148.0,95129.0,0.02207519]
[1768740863982,0.0211977,95147.0,95129.0,0.02207519]
[1768740864177,0.0211977,95146.0,95129.0,0.02207519]
[1768740864378,0.010514,95149.0,95129.0,0.02207519]
[1768740864676,0.02119477,95148.0,95129.0,0.02207519]
[1768740864879,0.02119477,95147.0,95129.0,0.02207519]
[1768740865183,0.02119477,95146.0,95131.0,0.00924653]
[1768740865385,0.010514,95149.0,95131.0,0.00924653]
[1768740865591,0.02119257,95148.0,95131.0,0.00924653]
[1768740865888,0.02119257,95147.0,95131.0,0.00924653]
[1768740866085,0.02119257,95146.0,95131.0,0.00924653]
[1768740866273,0.010514,95149.0,95131.0,0.00924653]
[1768740866473,0.0211908,95148.0,95131.0,0.00924653]
[1768740866671,0.0211908,95147.0,95131.0,0.00924653]
[1768740866884,0.0211908,95146.0,95131.0,0.00924653]
[1768740867085,0.010514,95151.0,95136.0,0.00924653]
[1768740867384,0.02118955,95150.0,95136.0,0.00924653]
[1768740867584,0.02118955,95149.0,95136.0,0.00924653]
[1768740867785,0.02118955,95148.0,95136.0,0.00924653]
[1768740868086,0.02118955,95147.0,95136.0,0.00924653]
[1768740868275,0.09464,95155.0,95136.0,0.00924653]
[1768740868574,0.02118868,95154.0,95136.0,0.00924653]
[1768740868775,0.02118868,95153.0,95136.0,0.00924653]
[1768740868975,0.02118868,95152.0,95136.0,0.00924653]
[1768740869177,0.02118868,95151.0,95136.0,0.00924653]
[1768740869475,0.02118868,95150.0,95136.0,0.00924653]
[1768740870380,0.09464,95155.0,95131.0,0.11845758]
[1768740870381,0.03170268,95149.0,95131.0,0.12770411]
[1768740870580,0.02118868,95148.0,95131.0,0.12770411]
[1768740870780,0.010514,95147.0,95131.0,0.12770411]
[1768740870982,0.02118868,95146.0,95131.0,0.12770411]
[1768740871389,0.010514,95145.0,95131.0,0.12770411]
[1768740873991,0.010514,95148.0,95131.0,0.12770411]
[1768740874190,0.02365565,95147.0,95131.0,0.12770411]
[1768740874496,0.02365565,95146.0,95131.0,0.12770411]
[1768740874684,0.02365565,95145.0,95131.0,0.12770411]
[1768740874884,0.010514,95148.0,95131.0,0.12770411]
[1768740875093,0.02365595,95147.0,95131.0,0.12770411]
[1768740875292,0.02365595,95146.0,95131.0,0.12770411]
[1768740875480,0.02365595,95145.0,95131.0,0.12770411]
[1768740875791,0.09464,95148.0,95131.0,0.13822011]
[1768740875982,0.02365646,95147.0,95131.0,0.13822011]
[1768740876183,0.02365646,95146.0,95131.0,0.13822011]
[1768740876384,0.02365646,95145.0,95131.0,0.13822011]
[1768740876600,0.09464,95148.0,95131.0,0.13822011]
[1768740876784,0.02365729,95147.0,95131.0,0.13822011]
[1768740876984,0.02365729,95146.0,95131.0,0.13822011]
[1768740877185,0.02365729,95145.0,95131.0,0.13822011]
[1768740877388,0.02365729,95144.0,95131.0,0.13822011]
[1768740877687,0.09464,95148.0,95131.0,0.13822011]
[1768740877883,0.02365831,95147.0,95131.0,0.13822011]
[1768740878082,0.02365831,95146.0,95131.0,0.13822011]
[1768740878289,0.02365831,95145.0,95131.0,0.13822011]
[1768740878488,0.02365831,95144.0,95131.0,0.13822011]
[1768740878690,0.09464,95148.0,95131.0,0.13822011]
[1768740878889,0.02365966,95147.0,95133.0,0.010516]
[1768740879095,0.02365966,95146.0,95133.0,0.010516]
[1768740879285,0.02365966,95145.0,95133.0,0.010516]
[1768740879484,0.02365966,95144.0,95133.0,0.010516]
[1768740879685,0.09464,95148.0,95132.0,0.00997171]
[1768740879985,0.02366128,95147.0,95132.0,0.00997171]
[1768740880190,0.02366128,95146.0,95132.0,0.00997171]
[1768740880492,0.02366128,95145.0,95132.0,0.00997171]
[1768740880794,0.02366128,95144.0,95132.0,0.00997171]
[1768740881094,0.09464,95148.0,95133.0,0.010516]
[1768740881293,0.02366543,95147.0,95133.0,0.010516]
[1768740881494,0.02366543,95146.0,95133.0,0.010516]
[1768740881695,0.02366543,95145.0,95133.0,0.010516]
[1768740881896,0.02366543,95144.0,95133.0,0.010516]
[1768740882091,0.09464,95148.0,95133.0,0.010516]
[1768740882290,0.02366758,95147.0,95133.0,0.010516]
[1768740882490,0.02366758,95146.0,95133.0,0.010516]
[1768740882691,0.02366758,95145.0,95133.0,0.010516]
[1768740882891,0.02366758,95144.0,95133.0,0.010516]
[1768740883093,0.09464,95148.0,95133.0,0.010516]
[1768740883293,0.02367023,95147.0,95133.0,0.010516]
[1768740883597,0.02367023,95146.0,95132.0,0.00997171]
[1768740883793,0.02367023,95145.0,95132.0,0.00997171]
[1768740883994,0.02362501,95144.0,95132.0,0.00997171]
[1768740884188,0.02362501,95143.0,95132.0,0.00997171]
[1768740884393,0.09464,95148.0,95132.0,0.00997171]
[1768740884695,0.02362829,95147.0,95133.0,0.010516]
[1768740884897,0.02362829,95146.0,95133.0,0.010516]
[1768740885196,0.02362829,95145.0,95133.0,0.010516]
[1768740885395,0.02362829,95145.0,95132.0,0.00997171]
[1768740885396,0.02362829,95144.0,95132.0,0.00997171]
[1768740885596,0.02362829,95143.0,95132.0,0.00997171]
[1768740885793,0.09464,95148.0,95132.0,0.00997171]
[1768740885993,0.02338716,95147.0,95132.0,0.00997171]
[1768740886198,0.02338716,95146.0,95132.0,0.00997171]
[1768740886398,0.02338716,95145.0,95132.0,0.00997171]
[1768740886590,0.02338716,95144.0,95132.0,0.00997171]
[1768740886788,0.02338716,95143.0,95132.0,0.00997171]
[1768740886988,0.02338716,95142.0,95132.0,0.00997171]
[1768740887188,0.09464,95148.0,95132.0,0.00997171]
[1768740887402,0.02339804,95147.0,95132.0,0.00997171]
[1768740887702,0.02339804,95146.0,95132.0,0.00997171]
[1768740887900,0.02339804,95145.0,95132.0,0.00997171]
[1768740888100,0.09464,95148.0,95132.0,0.00997171]
[1768740888101,0.02339804,95144.0,95132.0,0.00997171]
[1768740888301,0.02339804,95143.0,95132.0,0.00997171]
[1768740888501,0.02339804,95142.0,95132.0,0.00997171]
[1768740888701,0.02339804,95141.0,95132.0,0.00997171]
[1768740888897,0.09464,95148.0,95132.0,0.00997171]
[1768740889195,0.02340748,95147.0,95132.0,0.00997171]
[1768740889389,0.02340748,95146.0,95132.0,0.00997171]
[1768740889588,0.02340748,95145.0,95132.0,0.00997171]
[1768740889798,0.02340748,95144.0,95132.0,0.00997171]
[1768740889993,0.02340748,95143.0,95132.0,0.00997171]
[1768740890293,0.02340748,95142.0,95132.0,0.00997171]
[1768740890501,0.02340748,95141.0,95132.0,0.00997171]
[1768740890701,0.02340748,95140.0,95132.0,0.00997171]
[1768740890902,0.02340748,95139.0,95132.0,0.00997171]
[1768740891102,0.09464,95148.0,95132.0,0.00997171]
[1768740891302,0.02338288,95147.0,95132.0,0.00997171]
[1768740891504,0.02338288,95146.0,95132.0,0.00997171]
[1768740891802,0.02338288,95145.0,95132.0,0.00997171]
[1768740892004,0.02338288,95144.0,95132.0,0.00997171]
[1768740892201,0.02338288,95143.0,95132.0,0.00997171]
[1768740892400,0.09464,95148.0,95133.0,0.010516]
[1768740892401,0.02338288,95142.0,95133.0,0.010516]
[1768740892701,0.02338288,95141.0,95133.0,0.010516]
[1768740892903,0.02338288,95140.0,95133.0,0.010516]
[1768740893102,0.09464,95148.0,95133.0,0.010516]
[1768740893303,0.02328494,95147.0,95133.0,0.010516]
[1768740893503,0.02328494,95146.0,95133.0,0.010516]
[1768740893702,0.02328494,95145.0,95133.0,0.010516]
[1768740893903,0.09464,95148.0,95133.0,0.010516]
[1768740893904,0.02328494,95144.0,95133.0,0.011516]
[1768740894094,0.02328494,95143.0,95133.0,0.011516]
[1768740894295,0.02328494,95142.0,95133.0,0.011516]
[1768740894497,0.02328494,95141.0,95133.0,0.011516]
[1768740894709,0.02328494,95140.0,95133.0,0.011516]
[1768740894909,0.09464,95148.0,95133.0,0.011516]
[1768740895110,0.02319405,95147.0,95133.0,0.011516]
[1768740895311,0.02319405,95146.0,95133.0,0.010516]
[1768740895607,0.02319405,95145.0,95133.0,0.010516]
[1768740895807,0.02319405,95144.0,95133.0,0.010516]
[1768740895992,0.02319405,95143.0,95133.0,0.010516]
[1768740896197,0.02319405,95142.0,95133.0,0.010516]
[1768740896493,0.02319405,95141.0,95133.0,0.010516]
[1768740896808,0.09464,95148.0,95132.0,0.00997171]
[1768740897905,0.09464,95148.0,95133.0,0.010516]
[1768740898912,0.09464,95148.0,95132.0,0.00997171]
[1768740899213,0.09464,95148.0,95132.0,0.02048771]
[1768740899908,0.09464,95148.0,95134.0,0.010516]
[1768740900305,0.09464,95148.0,95132.0,0.11844365]
[1768740900507,0.09464,95148.0,95136.0,0.010515]
[1768740900701,0.09464,95148.0,95133.0,0.010516]
[1768740901812,0.00015768,95161.0,95137.0,0.11761777]
[1768740902109,0.010513,95157.0,95144.0,0.00914583]
[1768740902501,0.010513,95155.0,95144.0,0.00914583]
[1768740904509,0.010513,95155.0,95138.0,0.00914583]
[1768740905115,0.010513,95155.0,95136.0,0.10847194]
[1768740905116,0.00015768,95161.0,95139.0,0.12813277]
[1768740905410,0.09464,95160.0,95141.0,0.00914583]
[1768740906503,0.010513,95157.0,95141.0,0.00914583]
[1768740907203,0.09464,95160.0,95142.0,0.00914583]
[1768740907402,0.09464,95160.0,95146.0,0.00914583]
[1768740908308,0.00015768,95161.0,95149.0,0.01965983]
[1768740908513,0.0969518,95164.0,95149.0,0.01965983]
[1768740908713,0.0217411,95163.0,95149.0,0.01965983]
[1768740908911,0.0217411,95162.0,95149.0,0.01965983]
[1768740909106,0.0217411,95161.0,95149.0,0.01965983]
[1768740909307,0.0217411,95160.0,95149.0,0.01965983]
[1768740909507,0.0217411,95159.0,95149.0,0.01965983]
[1768740909706,0.0217411,95158.0,95149.0,0.01965983]
[1768740909913,0.0217411,95157.0,95149.0,0.01965983]
[1768740910112,0.0969518,95164.0,95149.0,0.01965983]
[1768740910412,0.02173059,95163.0,95149.0,0.01965983]
[1768740910616,0.02173059,95162.0,95149.0,0.01965983]
[1768740910799,0.02173059,95161.0,95149.0,0.01965983]
[1768740911112,0.02173059,95160.0,95149.0,0.01965983]
[1768740911312,0.02173059,95159.0,95149.0,0.00914583]
[1768740911516,0.02173059,95158.0,95149.0,0.00914583]
[1768740911814,0.02173059,95157.0,95149.0,0.00914583]
[1768740912015,0.02173059,95156.0,95149.0,0.00914583]
[1768740912216,0.02173059,95155.0,95149.0,0.00914583]
[1768740912411,0.0969518,95164.0,95149.0,0.00914583]
[1768740912613,0.02172442,95163.0,95149.0,0.00914583]
[1768740912808,0.02172442,95162.0,95149.0,0.00914583]
[1768740913009,0.02172442,95161.0,95149.0,0.00914583]
[1768740913213,0.02172442,95160.0,95149.0,0.00914583]
[1768740913413,0.02172442,95159.0,95149.0,0.00914583]
[1768740913711,0.02172442,95158.0,95149.0,0.00914583]
[1768740913911,0.02172442,95157.0,95149.0,0.00914583]
[1768740914112,0.02172442,95156.0,95149.0,0.00914583]
[1768740914313,0.0969518,95164.0,95149.0,0.00914583]
[1768740914514,0.02172018,95163.0,95149.0,0.00914583]
[1768740914713,0.02172018,95162.0,95149.0,0.00914583]
[1768740914913,0.02172018,95161.0,95149.0,0.00914583]
[1768740915115,0.02172018,95160.0,95149.0,0.00914583]
[1768740915319,0.02172018,95159.0,95149.0,0.00914583]
[1768740915618,0.02172018,95158.0,95149.0,0.00914583]
[1768740915917,0.02172018,95157.0,95149.0,0.00914583]
[1768740916114,0.02172018,95156.0,95149.0,0.00914583]
[1768740916317,0.1074638,95164.0,95149.0,0.00914583]
[1768740916514,0.0217174,95163.0,95149.0,0.00914583]
[1768740916717,0.0217174,95162.0,95149.0,0.00914583]
[1768740916917,0.0217174,95161.0,95149.0,0.00914583]
[1768740917117,0.0217174,95160.0,95149.0,0.00914583]
[1768740917318,0.0217174,95159.0,95149.0,0.00914583]
[1768740917518,0.0217174,95158.0,95149.0,0.00914583]
[1768740917822,0.0217174,95157.0,95149.0,0.00914583]
[1768740918122,0.0217174,95156.0,95149.0,0.00914583]
[1768740918420,0.1074638,95164.0,95144.0,0.11761777]
[1768740918719,0.02171572,95163.0,95144.0,0.11761777]
[1768740918916,0.02171572,95162.0,95144.0,0.11761777]
[1768740919127,0.02171572,95161.0,95144.0,0.11761777]
[1768740919312,0.02171572,95160.0,95144.0,0.11761777]
[1768740919514,0.02171572,95159.0,95144.0,0.11761777]
[1768740919714,0.02171572,95158.0,95144.0,0.11761777]
[1768740919913,0.02171572,95157.0,95144.0,0.11761777]
[1768740920122,0.02171572,95156.0,95144.0,0.11761777]
[1768740920424,0.1074638,95164.0,95144.0,0.11761777]
[1768740920620,0.02171498,95163.0,95144.0,0.11761777]
[1768740920820,0.02171498,95162.0,95145.0,0.00914583]
[1768740921022,0.02171498,95161.0,95145.0,0.00914583]
[1768740921222,0.02171498,95160.0,95145.0,0.00914583]
[1768740921410,0.1074638,95164.0,95145.0,0.00914583]
[1768740921614,0.02171494,95163.0,95145.0,0.00914583]
[1768740921815,0.02171494,95162.0,95145.0,0.00914583]
[1768740922015,0.02171494,95161.0,95145.0,0.00914583]
[1768740922215,0.02171494,95160.0,95145.0,0.00914583]
[1768740922415,0.1074638,95164.0,95145.0,0.00914583]
[1768740922615,0.02171512,95163.0,95145.0,0.00914583]
[1768740922817,0.02171512,95162.0,95145.0,0.00914583]
[1768740923019,0.02171512,95161.0,95145.0,0.00914583]
[1768740923217,0.02171512,95160.0,95145.0,0.00914583]
[1768740923418,0.02171529,95159.0,95145.0,0.00914583]
[1768740923619,0.1074638,95164.0,95145.0,0.00914583]
[1768740923832,0.02171529,95163.0,95145.0,0.00914583]
[1768740924037,0.02171529,95162.0,95145.0,0.00914583]
[1768740924237,0.02171529,95161.0,95145.0,0.00914583]
[1768740924433,0.02171529,95160.0,95145.0,0.00914583]
[1768740924632,0.02171529,95159.0,95145.0,0.00914583]
[1768740924832,0.1074638,95164.0,95145.0,0.00914583]
[1768740925037,0.02171579,95163.0,95145.0,0.00914583]
[1768740925232,0.02171579,95162.0,95145.0,0.00914583]
[1768740925433,0.02171579,95161.0,95145.0,0.00914583]
[1768740925635,0.02171579,95160.0,95145.0,0.00914583]
[1768740925842,0.02171579,95159.0,95145.0,0.00914583]
[1768740926035,0.1074638,95164.0,95145.0,0.00914583]
[1768740926337,0.0217165,95163.0,95145.0,0.00914583]
[1768740926538,0.0217165,95162.0,95145.0,0.00914583]
[1768740926738,0.0217165,95161.0,95145.0,0.00914583]
[1768740926930,0.0217165,95160.0,95145.0,0.00914583]
[1768740927129,0.0217165,95159.0,95145.0,0.00914583]
[1768740927340,0.1074638,95164.0,95145.0,0.00914583]
[1768740927531,0.02171864,95163.0,95145.0,0.00914583]
[1768740927737,0.02171864,95162.0,95145.0,0.00914583]
[1768740928039,0.02171864,95161.0,95145.0,0.00914583]
[1768740928241,0.02171864,95160.0,95145.0,0.00914583]
[1768740928441,0.02171864,95159.0,95145.0,0.00914583]
[1768740928641,0.0128238,95164.0,95145.0,0.00914583]
[1768740928841,0.02172005,95163.0,95145.0,0.00914583]
[1768740929043,0.0128238,95164.0,95145.0,0.00914583]
[1768740930746,0.010513,95162.0,95145.0,0.00914583]
[1768740935650,0.010513,95162.0,95145.0,0.01965983]
[1768740949363,0.010513,95162.0,95146.0,0.00959792]
[1768740966677,0.0023118,95164.0,95146.0,0.00959792]
[1768740967672,0.0128238,95164.0,95146.0,0.00959792]
[1768740969079,0.0128238,95164.0,95146.0,0.11927537]
[1768740969278,0.0128238,95164.0,95147.0,0.00986178]
[1768740972685,0.0023118,95164.0,95143.0,0.00015768]
[1768740972887,0.010513,95155.0,95143.0,0.00015768]
[1768740973287,0.010514,95153.0,95143.0,0.00015768]
[1768740973492,0.010513,95156.0,95143.0,0.00015768]
[1768740974392,0.00964966,95158.0,95143.0,0.00015768]
[1768740974893,0.010513,95157.0,95143.0,0.00015768]
[1768740975084,0.00964966,95158.0,95143.0,0.00015768]
[1768740975085,0.010514,95154.0,95143.0,0.00015768]
[1768740975391,0.010514,95152.0,95143.0,0.00015768]
[1768740975787,0.00964966,95158.0,95143.0,0.00015768]
[1768740975988,0.00964966,95157.0,95143.0,0.00015768]
[1768740976389,0.00964966,95155.0,95138.0,0.03781071]
[1768740976589,0.010514,95153.0,95138.0,0.03781071]
[1768740978291,0.010514,95149.0,95137.0,0.03781071]
[1768740978491,0.010514,95147.0,95136.0,0.09464]
[1768740978692,0.010514,95150.0,95136.0,0.09464]
[1768740980508,0.010514,95148.0,95136.0,0.09464]
[1768740980798,0.010515,95142.0,95132.0,0.00986178]
[1768740980993,0.010515,95142.0,95132.0,0.00015768]
[1768740984094,0.00964966,95151.0,95132.0,0.00015768]
[1768740984699,0.010515,95139.0,95132.0,6.8e-07]
[1768740985397,0.010515,95139.0,95129.0,0.00231266]
[1768740985900,0.00918556,95145.0,95124.0,7.7e-07]
[1768740986299,0.010516,95134.0,95124.0,7.7e-07]
[1768740986603,0.010515,95137.0,95124.0,7.7e-07]
[1768740987004,0.00918556,95142.0,95124.0,7.7e-07]
[1768740987401,0.04937793,95141.0,95124.0,7.7e-07]
[1768740987603,0.00918556,95142.0,95124.0,7.7e-07]
[1768740988009,0.010516,95136.0,95124.0,7.7e-07]
[1768740989900,0.00918556,95142.0,95124.0,7.7e-07]
[1768740990204,0.010516,95131.0,95124.0,7.7e-07]
[1768740990603,0.010516,95131.0,95121.0,0.00963899]
[1768740992207,0.010516,95131.0,95116.0,0.09464]
[1768740993406,0.010516,95131.0,95116.0,0.10427899]
[1768740993913,0.00015768,95133.0,95116.0,0.11479699]
[1768740994104,0.01067368,95133.0,95117.0,0.00963899]
[1768740998918,0.010516,95131.0,95117.0,0.00963899]